{"text_format":"1","workbook":"xlsx","n_sheets":3,"sheets":["DR-1","ZDR-1","ZDR-2"],"not_rendered":{"charts":0,"images":11,"macros":1,"external_links":0,"defined_names":3,"comments":0,"pivot_tables":0},"unopened":[],"bounds":{"document_bytes":16777216,"sheet_cells":100000,"rows_first":2000,"rows_last":500,"rows_between":2000,"halvings":0,"cell_chars":16384,"cell_head_chars":4096},"cells_cut":0,"cells_raw":0,"read":"whole","date_system":"1900"}

{"sheet":"DR-1","index":0,"n_rows":248,"n_cols":26,"rows_kept":248,"cut":false,"hidden":false,"merged":[[56,1,56,23],[57,2,57,7],[57,8,57,17],[57,18,57,23],[227,1,227,23],[176,2,176,7],[176,8,176,23],[184,2,184,14],[184,15,184,23],[211,2,211,23],[212,2,212,23],[220,2,220,23],[74,1,74,23],[75,2,75,3],[75,4,75,11],[75,12,75,18],[75,19,75,23],[195,15,195,23],[196,2,196,14],[196,15,196,23],[190,1,190,23],[191,2,191,14],[191,15,191,23],[192,2,192,14],[216,2,216,23],[217,2,217,23],[218,2,218,23],[219,2,219,23],[222,2,222,23],[194,2,194,14],[194,15,194,23],[195,2,195,14],[68,1,68,23],[72,1,72,23],[69,2,69,23],[192,15,192,23],[193,2,193,14],[193,15,193,23],[182,2,182,14],[203,1,203,23],[204,1,204,23],[205,2,205,23],[206,2,206,23],[207,2,207,23],[210,2,210,23],[213,2,213,23],[215,2,215,23],[214,2,214,23],[247,4,247,6],[247,7,247,23],[189,1,189,23],[179,1,179,23],[180,1,180,23],[181,2,181,14],[187,0,187,23],[182,15,182,23],[183,2,183,14],[183,15,183,23],[181,15,181,23],[228,1,228,23],[229,1,229,23],[201,2,201,23],[246,1,246,23],[247,1,247,3],[197,2,197,14],[197,15,197,23],[198,2,198,14],[198,15,198,23],[199,1,199,23],[200,1,200,23],[208,2,208,23],[221,2,221,23],[53,2,53,8],[53,9,53,20],[53,22,53,23],[54,2,54,14],[54,15,54,23],[55,2,55,14],[55,15,55,23],[159,1,159,23],[185,1,185,23],[71,1,71,23],[70,17,70,23],[70,9,70,15],[61,2,61,14],[61,15,61,23],[62,2,62,14],[62,15,62,23],[63,1,63,23],[64,1,64,19],[64,20,64,22],[125,0,125,23],[126,1,126,23],[127,1,127,23],[122,1,122,23],[115,1,115,23],[51,2,51,7],[51,8,51,17],[51,18,51,23],[52,2,52,8],[52,9,52,20],[52,22,52,23],[48,2,48,10],[48,11,48,18],[48,19,48,23],[49,1,49,23],[50,2,50,7],[50,8,50,17],[50,18,50,23],[43,2,43,14],[43,15,43,23],[44,2,44,23],[46,1,46,23],[47,2,47,10],[47,11,47,18],[47,19,47,23],[45,2,45,10],[45,11,45,23],[33,1,33,23],[34,2,34,23],[36,1,36,23],[37,1,37,23],[39,1,39,23],[42,2,42,14],[42,15,42,23],[35,4,35,15],[35,16,35,23],[38,4,38,23],[40,2,40,23],[41,4,41,8],[41,10,41,13],[41,14,41,23],[32,1,32,23],[24,1,24,23],[25,1,25,23],[26,2,26,23],[27,2,27,23],[28,2,28,23],[29,2,29,9],[29,10,29,16],[29,17,29,23],[30,2,30,23],[31,2,31,11],[31,16,31,17],[31,18,31,23],[31,12,31,15],[0,1,0,23],[1,1,1,23],[2,1,2,23],[3,14,4,23],[4,1,4,2],[3,1,3,13],[7,11,7,16],[8,11,8,16],[20,1,20,3],[20,4,20,23],[11,4,11,23],[12,1,12,3],[12,4,12,23],[18,1,18,3],[18,4,18,23],[19,1,19,3],[19,4,19,23],[13,1,13,3],[13,4,13,23],[17,1,17,3],[17,4,17,23],[14,1,14,3],[14,4,14,23],[15,1,15,3],[4,3,4,13],[5,1,5,23],[6,1,6,23],[9,1,9,23],[10,1,10,3],[10,4,10,23],[22,1,22,3],[22,4,22,23],[23,1,23,3],[23,4,23,23],[15,4,15,23],[16,1,16,3],[16,4,16,23],[21,1,21,3],[7,7,8,10],[21,4,21,23],[118,2,118,10],[123,1,123,23],[124,1,124,3],[124,4,124,6],[160,2,160,8],[161,2,161,8],[160,9,160,15],[160,16,160,19],[160,20,160,23],[161,9,161,15],[161,16,161,19],[161,20,161,23],[138,1,138,23],[139,1,139,23],[140,1,140,23],[141,20,141,23],[142,20,142,23],[141,2,142,19],[119,2,119,10],[118,11,118,17],[118,18,118,23],[119,11,119,17],[119,18,119,23],[121,2,121,10],[162,2,162,8],[162,9,162,15],[162,16,162,19],[162,20,162,23],[163,2,163,8],[163,9,163,15],[163,16,163,19],[163,20,163,23],[167,2,167,15],[167,16,167,23],[168,8,168,15],[168,19,168,23],[171,1,171,23],[169,1,169,23],[170,1,170,23],[164,1,164,23],[165,1,165,23],[166,2,166,23],[230,1,230,23],[186,1,186,19],[186,20,186,22],[188,1,188,23],[175,2,175,23],[177,2,177,23],[178,1,178,23],[172,2,172,23],[173,2,173,14],[173,15,173,23],[174,2,174,14],[174,15,174,23],[209,2,209,23],[224,1,224,23],[225,1,225,23],[226,1,226,23],[46,25,46,28],[47,25,47,28],[48,25,48,28],[49,25,49,28],[50,25,50,28],[51,25,51,28],[52,25,52,28],[53,25,53,28],[54,25,54,28],[55,25,55,28],[56,25,56,28],[57,25,57,28],[58,25,58,28],[59,25,59,28],[60,25,60,28],[61,25,61,28],[76,2,76,3],[76,4,76,11],[76,12,76,18],[76,19,76,23],[58,2,58,7],[58,8,58,17],[58,18,58,23],[73,1,73,23],[65,0,65,23],[66,1,66,23],[67,1,67,23],[59,2,59,8],[59,9,59,20],[59,22,59,23],[60,2,60,8],[60,9,60,20],[60,22,60,23],[77,4,77,11],[77,12,77,18],[77,19,77,23],[78,4,78,11],[78,12,78,18],[78,19,78,23],[77,2,78,3],[79,2,80,3],[79,4,79,11],[79,12,79,18],[79,19,79,23],[80,4,80,11],[80,12,80,18],[80,19,80,23],[81,2,82,3],[81,4,81,11],[81,12,81,18],[81,19,81,23],[82,4,82,11],[82,12,82,18],[82,19,82,23],[85,19,85,23],[86,4,86,11],[86,12,86,18],[86,19,86,23],[83,2,84,3],[83,4,83,11],[83,12,83,18],[83,19,83,23],[84,4,84,11],[84,12,84,18],[84,19,84,23],[85,2,86,3],[85,4,85,11],[85,12,85,18],[87,2,88,3],[87,4,87,11],[87,12,87,18],[87,19,87,23],[88,4,88,11],[88,12,88,18],[88,19,88,23],[89,1,89,23],[90,2,90,3],[90,4,90,11],[90,12,90,18],[90,19,90,23],[91,2,91,3],[91,4,91,11],[91,12,91,18],[91,19,91,23],[92,2,93,3],[92,4,92,11],[92,12,92,18],[92,19,92,23],[93,4,93,11],[93,12,93,18],[93,19,93,23],[94,2,95,3],[94,4,94,11],[94,12,94,18],[94,19,94,23],[95,4,95,11],[95,12,95,18],[95,19,95,23],[101,4,101,11],[101,12,101,18],[101,19,101,23],[100,1,100,23],[101,2,101,3],[96,2,97,3],[96,4,96,11],[96,12,96,18],[96,19,96,23],[97,4,97,11],[97,12,97,18],[97,19,97,23],[98,2,99,3],[98,4,98,11],[98,12,98,18],[98,19,98,23],[99,4,99,11],[99,12,99,18],[99,19,99,23],[102,2,102,3],[102,4,102,11],[102,12,102,18],[102,19,102,23],[103,2,104,3],[103,4,103,11],[103,12,103,18],[103,19,103,23],[104,4,104,11],[104,12,104,18],[104,19,104,23],[105,2,106,3],[105,4,105,11],[105,12,105,18],[105,19,105,23],[106,4,106,11],[106,12,106,18],[106,19,106,23],[107,2,108,3],[107,4,107,11],[107,12,107,18],[107,19,107,23],[108,4,108,11],[108,12,108,18],[108,19,108,23],[109,2,110,3],[109,4,109,11],[109,12,109,18],[109,19,109,23],[110,4,110,11],[110,12,110,18],[110,19,110,23],[111,2,112,3],[111,4,111,11],[111,12,111,18],[111,19,111,23],[112,4,112,11],[112,12,112,18],[112,19,112,23],[113,2,114,3],[113,4,113,11],[113,12,113,18],[113,19,113,23],[114,4,114,11],[114,12,114,18],[114,19,114,23],[116,1,116,23],[117,1,117,23],[121,11,121,17],[121,18,121,23],[120,2,120,10],[120,11,120,17],[120,18,120,23],[124,7,124,23],[128,1,128,23],[129,1,129,23],[136,2,136,14],[136,15,136,23],[131,18,131,23],[132,2,132,10],[132,11,132,17],[132,18,132,23],[133,2,133,10],[133,11,133,17],[133,18,133,23],[134,1,134,23],[135,1,135,23],[130,2,130,10],[130,11,130,17],[130,18,130,23],[131,2,131,10],[131,11,131,17],[137,2,137,14],[137,15,137,23],[149,15,149,23],[150,15,150,23],[149,2,150,14],[151,2,151,14],[151,15,151,23],[152,2,152,14],[152,15,152,23],[143,1,143,23],[144,1,144,23],[145,2,145,14],[145,15,145,23],[146,2,146,14],[146,15,146,23],[147,2,147,14],[147,15,147,23],[148,2,148,14],[148,15,148,23],[158,2,158,14],[158,15,158,23],[153,2,153,14],[153,15,153,23],[154,2,154,14],[154,15,154,23],[155,2,155,14],[155,15,155,23],[156,2,156,14],[156,15,156,23],[157,2,157,14],[157,15,157,23]]}
[]
[null," WYPEŁNIĆ DUŻYMI, DRUKOWANYMI LITERAMI, CZARNYM LUB NIEBIESKIM KOLOREM."]
[]
[null," 1. Identyfikator podatkowy NIP / numer PESEL (niepotrzebne skreślić)1)",null,null,null,null,null,null,null,null,null,null,null,null," 2. Nr dokumentu"]
[]
[null,"DR-1"]
[null,"DEKLARACJA NA PODATEK ROLNY"]
[null,null,null,null,null,null,null,"NA ROK",null,null,null," 3. Rok"]
[]
[]
[null," Podstawa prawna:",null,null,"Art. 6a ust. 8, 9 i 10 ustawy z dnia 15 listopada 1984 r. o podatku rolnym (Dz. U. z 2017 r. poz. 1892, z późn. zm.), zwanej '"]
[null,null,null,null,"dalej „ustawą”."]
[null," Składający:",null,null,"Osoby prawne, jednostki organizacyjne, w tym spółki, nieposiadające osobowości prawnej, jednostki organizacyjne Krajowego '"]
[null,null,null,null,"Ośrodka Wsparcia Rolnictwa, a także jednostki organizacyjne Lasów Państwowych, będące właścicielami gruntów,"]
[null,null,null,null,"posiadaczami samoistnymi gruntów, użytkownikami wieczystymi gruntów, posiadaczami gruntów stanowiących własność"]
[null,null,null,null,"Skarbu Państwa lub jednostki samorządu terytorialnego oraz osoby fizyczne będące współwłaścicielami lub"]
[null,null,null,null,"współposiadaczami gruntów z osobami prawnymi lub z jednostkami organizacyjnymi, w tym spółkami, nieposiadającymi"]
[null,null,null,null,"osobowości prawnej."]
[]
[]
[null," Termin składania:",null,null,"Do dnia 15 stycznia danego roku podatkowego lub w terminie 14 dni od dnia zaistnienia okoliczności uzasadniających"]
[null,null,null,null,"powstanie obowiązku podatkowego lub od dnia zaistnienia zmian mających wpływ na wysokość opodatkowania, o których"]
[null,null,null,null,"mowa w art. 6a ust. 4 ustawy."]
[null," Miejsce składania:",null,null,"Organ podatkowy właściwy ze względu na miejsce położenia przedmiotów opodatkowania."]
[]
[null," A. MIEJSCE I CEL SKŁADANIA DEKLARACJI2)"]
[null,null," 4. Nazwa i adres siedziby organu podatkowego"]
[null,null,"PREZYDENT MIASTA EŁKU  Adres: 19-300 Ełk  ul. Marsz. J. Piłsudskiego 4"]
[null,null," 5. Cel złożenia formularza (zaznaczyć właściwy kwadrat):"]
[null,null,null,null,null,null,null,null,null,null," 1. złożenie deklaracji",null,null,null,null,null,null," 2. korekta deklaracji 3)"]
[null,null," 6. Okres – od którego deklaracja obowiązuje"]
[null,null," (miesiąc)"]
[]
[null," B. PODMIOT ZOBOWIĄZANY DO ZŁOŻENIA DEKLARACJI"]
[null,null," 7. Rodzaj podmiotu (zaznaczyć właściwy kwadrat):"]
[null,null,null,null," 1. właściciel, użytkownik wieczysty lub posiadacz",null,null,null,null,null,null,null,null,null,null,null," 2. współwłaściciel, współużytkownik wieczysty lub współposiadacz"]
[]
[null," C. DANE PODATNIKA"]
[null,null,null,null,"* - dotyczy podatnika niebędącego osobą fizyczną     ** - dotyczy podatnika będącego osobą fizyczną"]
[null," C.1. DANE IDENTYFIKACYJNE"]
[null,null," 8. Rodzaj podatnika (zaznaczyć właściwy kwadrat):"]
[null,null,null,null," 1. osoba fizyczna",null,null,null,null,null," 2. osoba prawna",null,null,null," 3. jednostka organizacyjna, w tym spółka nieposiadająca osobowości prawnej"]
[null,null," 9. Nazwa pełna * / Nazwisko **",null,null,null,null,null,null,null,null,null,null,null,null," 10. Nazwa skrócona * / Pierwsze imię**"]
[]
[null,null," 11. Identyfikator REGON (w przypadku osób fizycznych REGON podaje się, o ile został nadany)"]
[]
[null,"Pola 12, 13, 14 wypełnia osoba fizyczna w przypadku, gdy numer PESEL nie został nadany.",null,null,null,null,null,null,null,null,null,null,null,null,null,null,null,null,null,null,null,null,null,null,null,"Dolnośląskie"]
[null,null," 12. Data urodzenia (dzień - miesiąc - rok)",null,null,null,null,null,null,null,null," 13. Imię ojca",null,null,null,null,null,null,null," 14. Imię matki",null,null,null,null,null,"Kujawsko-Pomorskie"]
[null,null,null,null,null,null,null,null,null,null,null,null,null,null,null,null,null,null,null,null,null,null,null,null,null,"Lubelskie"]
[null," C.2. ADRES SIEDZIBY * / ADRES ZAMIESZKANIA **",null,null,null,null,null,null,null,null,null,null,null,null,null,null,null,null,null,null,null,null,null,null,null,"Lubuskie"]
[null,null," 15. Kraj",null,null,null,null,null," 16. Województwo",null,null,null,null,null,null,null,null,null," 17. Powiat",null,null,null,null,null,null,"Łódzkie"]
[null,null,null,null,null,null,null,null,null,null,null,null,null,null,null,null,null,null,null,null,null,null,null,null,null,"Małopolskie"]
[null,null," 18. Gmina",null,null,null,null,null,null," 19. Ulica",null,null,null,null,null,null,null,null,null,null,null," 20. Nr domu"," 21. Nr lokalu",null,null,"Mazowieckie"]
[null,null,null,null,null,null,null,null,null,null,null,null,null,null,null,null,null,null,null,null,null,null,null,null,null,"Opolskie"]
[null,null," 22. Miejscowość",null,null,null,null,null,null,null,null,null,null,null,null," 23. Kod pocztowy",null,null,null,null,null,null,null,null,null,"Podkarpackie"]
[null,null,null,null,null,null,null,null,null,null,null,null,null,null,null,null,null,null,null,null,null,null,null,null,null,"Podlaskie"]
[null," C.3. ADRES DO DORĘCZEŃ Należy wypełnić tylko wówczas, gdy adres do doręczeń jest inny niż w części C.2.",null,null,null,null,null,null,null,null,null,null,null,null,null,null,null,null,null,null,null,null,null,null,null,"Pomorskie"]
[null,null," 24. Kraj",null,null,null,null,null," 25. Województwo",null,null,null,null,null,null,null,null,null," 26. Powiat",null,null,null,null,null,null,"Śląskie"]
[null,null,null,null,null,null,null,null,null,null,null,null,null,null,null,null,null,null,null,null,null,null,null,null,null,"Świętokrzyskie"]
[null,null," 27. Gmina",null,null,null,null,null,null," 28. Ulica",null,null,null,null,null,null,null,null,null,null,null," 29. Nr domu"," 30. Nr lokalu",null,null,"Warmińsko-Mazurskie"]
[null,null,null,null,null,null,null,null,null,null,null,null,null,null,null,null,null,null,null,null,null,null,null,null,null,"Wielkopolskie"]
[null,null," 31. Miejscowość",null,null,null,null,null,null,null,null,null,null,null,null," 32. Kod pocztowy",null,null,null,null,null,null,null,null,null,"Zachodniopomorskie"]
[]
[]
[null,null,null,null,null,null,null,null,null,null,null,null,null,null,null,null,null,null,null,null,"DR-1(1)",null,null," 1/4"]
[" - STRONA 2 -"]
[null," WYPEŁNIĆ DUŻYMI, DRUKOWANYMI LITERAMI, CZARNYM LUB NIEBIESKIM KOLOREM."]
[]
[null," D. OŚWIADCZENIE O POSIADANIU GOSPODARSTWA ROLNEGO4)"]
[null,null," 33. Oświadczenie (zaznaczyć właściwy kwadrat):"]
[null,null,null,null,null,null,null,null,null,"1. posiadam gospodarstwo rolne",null,null,null,null,null,null,null,"2. nie posiadam gospodarstwa rolnego"]
[]
[null," E. DANE O UŻYTKACH ROLNYCH STANOWIĄCYCH GOSPODARSTWO ROLNE -"]
[null," PODLEGAJĄCYCH OPODATKOWANIU"]
[null," E.1. GRUNTY ORNE"]
[null,null,"Klasa",null,"Powierzchnia w ha5)",null,null,null,null,null,null,null,"Przelicznik",null,null,null,null,null,null,"Powierzchnia w ha przeliczeniowych5)"]
[null,null,null,null,"a",null,null,null,null,null,null,null,"b",null,null,null,null,null,null,"c"]
[null,null,"I",null," 34.",null,null,null,null,null,null,null," 35.",null,null,null,null,null,null," 36."]
[null,null,null,null,null,null,null,null,null,null,null,null,null,null,null,null,null,null,null,{"$f":"IF(OR(E79=\"\",M79=\"\"),\"\",E79*M79)","v":""}]
[null,null,"II",null," 37.",null,null,null,null,null,null,null," 38.",null,null,null,null,null,null," 39."]
[null,null,null,null,null,null,null,null,null,null,null,null,null,null,null,null,null,null,null,{"$f":"IF(OR(E81=\"\",M81=\"\"),\"\",E81*M81)","v":""}]
[null,null,"IIIa",null," 40.",null,null,null,null,null,null,null," 41.",null,null,null,null,null,null," 42."]
[null,null,null,null,null,null,null,null,null,null,null,null,null,null,null,null,null,null,null,{"$f":"IF(OR(E83=\"\",M83=\"\"),\"\",E83*M83)","v":""}]
[null,null,"IIIb",null," 43.",null,null,null,null,null,null,null," 44.",null,null,null,null,null,null," 45."]
[null,null,null,null,null,null,null,null,null,null,null,null,null,null,null,null,null,null,null,{"$f":"IF(OR(E85=\"\",M85=\"\"),\"\",E85*M85)","v":""}]
[null,null,"IVa",null," 46.",null,null,null,null,null,null,null," 47.",null,null,null,null,null,null," 48."]
[null,null,null,null,null,null,null,null,null,null,null,null,null,null,null,null,null,null,null,{"$f":"IF(OR(E87=\"\",M87=\"\"),\"\",E87*M87)","v":""}]
[null,null,"IVb",null," 49.",null,null,null,null,null,null,null," 50.",null,null,null,null,null,null," 51."]
[null,null,null,null,null,null,null,null,null,null,null,null,null,null,null,null,null,null,null,{"$f":"IF(OR(E89=\"\",M89=\"\"),\"\",E89*M89)","v":""}]
[null," E.2. ŁĄKI I PASTWISKA"]
[null,null,"Klasa",null,"Powierzchnia w ha5)",null,null,null,null,null,null,null,"Przelicznik",null,null,null,null,null,null,"Powierzchnia w ha przeliczeniowych5)"]
[null,null,null,null,"a",null,null,null,null,null,null,null,"b",null,null,null,null,null,null,"c"]
[null,null,"I",null," 52.",null,null,null,null,null,null,null," 53.",null,null,null,null,null,null," 54."]
[null,null,null,null,null,null,null,null,null,null,null,null,null,null,null,null,null,null,null,{"$f":"IF(OR(E94=\"\",M94=\"\"),\"\",E94*M94)","v":""}]
[null,null,"II",null," 55.",null,null,null,null,null,null,null," 56.",null,null,null,null,null,null," 57."]
[null,null,null,null,null,null,null,null,null,null,null,null,null,null,null,null,null,null,null,{"$f":"IF(OR(E96=\"\",M96=\"\"),\"\",E96*M96)","v":""}]
[null,null,"III",null," 58.",null,null,null,null,null,null,null," 59.",null,null,null,null,null,null," 60."]
[null,null,null,null,null,null,null,null,null,null,null,null,null,null,null,null,null,null,null,{"$f":"IF(OR(E98=\"\",M98=\"\"),\"\",E98*M98)","v":""}]
[null,null,"IV",null," 61.",null,null,null,null,null,null,null," 62.",null,null,null,null,null,null," 63."]
[null,null,null,null,null,null,null,null,null,null,null,null,null,null,null,null,null,null,null,{"$f":"IF(OR(E100=\"\",M100=\"\"),\"\",E100*M100)","v":""}]
[null," E.3. SADY"]
[null,null,"Klasa",null,"Powierzchnia w ha5)",null,null,null,null,null,null,null,"Przelicznik",null,null,null,null,null,null,"Powierzchnia w ha przeliczeniowych5)"]
[null,null,null,null,"a",null,null,null,null,null,null,null,"b",null,null,null,null,null,null,"c"]
[null,null,"I",null," 64.",null,null,null,null,null,null,null," 65.",null,null,null,null,null,null," 66."]
[null,null,null,null,null,null,null,null,null,null,null,null,null,null,null,null,null,null,null,{"$f":"IF(OR(E105=\"\",M105=\"\"),\"\",E105*M105)","v":""}]
[null,null,"II",null," 67.",null,null,null,null,null,null,null," 68.",null,null,null,null,null,null," 69."]
[null,null,null,null,null,null,null,null,null,null,null,null,null,null,null,null,null,null,null,{"$f":"IF(OR(E107=\"\",M107=\"\"),\"\",E107*M107)","v":""}]
[null,null,"III, IIIa",null," 70.",null,null,null,null,null,null,null," 71.",null,null,null,null,null,null," 72."]
[null,null,null,null,null,null,null,null,null,null,null,null,null,null,null,null,null,null,null,{"$f":"IF(OR(E109=\"\",M109=\"\"),\"\",E109*M109)","v":""}]
[null,null,"IIIb",null," 73.",null,null,null,null,null,null,null," 74.",null,null,null,null,null,null," 75."]
[null,null,null,null,null,null,null,null,null,null,null,null,null,null,null,null,null,null,null,{"$f":"IF(OR(E111=\"\",M111=\"\"),\"\",E111*M111)","v":""}]
[null,null,"IV, IVa",null," 76.",null,null,null,null,null,null,null," 77.",null,null,null,null,null,null," 78."]
[null,null,null,null,null,null,null,null,null,null,null,null,null,null,null,null,null,null,null,{"$f":"IF(OR(E113=\"\",M113=\"\"),\"\",E113*M113)","v":""}]
[null,null,"IVb",null," 79.",null,null,null,null,null,null,null," 80.",null,null,null,null,null,null," 81."]
[null,null,null,null,null,null,null,null,null,null,null,null,null,null,null,null,null,null,null,{"$f":"IF(OR(E115=\"\",M115=\"\"),\"\",E115*M115)","v":""}]
[null," E.4. GRUNTY POD STAWAMI ZARYBIONYMI - łososiem, trocią, głowacicą, palią i pstrągiem,"]
[null,"GRUNTY ROLNE ZABUDOWANE oraz UŻYTKI ROLNE O NIEUSTALONYM PRZELICZNIKU"]
[null,"POWIERZCHNI"]
[null,null,"Powierzchnia w ha5)",null,null,null,null,null,null,null,null,"Przelicznik",null,null,null,null,null,null,"Powierzchnia w ha przeliczeniowych5)"]
[null,null,"a",null,null,null,null,null,null,null,null,"b",null,null,null,null,null,null,"c"]
[null,null," 82.",null,null,null,null,null,null,null,null," 83.",null,null,null,null,null,null," 84."]
[null,null,null,null,null,null,null,null,null,null,null,1,null,null,null,null,null,null,{"$f":"IF(OR(C122=\"\",L122=\"\"),\"\",C122*L122)","v":""}]
[]
[]
[null,"DR-1(1)",null,null,"2/4"]
[" - STRONA 3 -"]
[null," WYPEŁNIĆ DUŻYMI, DRUKOWANYMI LITERAMI, CZARNYM LUB NIEBIESKIM KOLOREM."]
[]
[null," E.5. GRUNTY POD STAWAMI ZARYBIONYMI - innymi gatunkami ryb, GRUNTY POD STAWAMI"]
[null,"NIEZARYBIONYMI, GRUNTY POD ROWAMI"]
[null,null,"Powierzchnia w ha5)",null,null,null,null,null,null,null,null,"Przelicznik",null,null,null,null,null,null,"Powierzchnia w ha przeliczeniowych5)"]
[null,null,"a",null,null,null,null,null,null,null,null,"b",null,null,null,null,null,null,"c"]
[null,null," 85.",null,null,null,null,null,null,null,null," 86.",null,null,null,null,null,null," 87."]
[null,null,null,null,null,null,null,null,null,null,null,0.2,null,null,null,null,null,null,{"$f":"IF(OR(C134=\"\",L134=\"\"),\"\",C134*L134)","v":""}]
[null," E.6. ŁĄCZNA POWIERZCHNIA UŻYTKÓW ROLNYCH STANOWIĄCYCH GOSPODARSTWO"]
[null,"ROLNE5)"]
[null,null," 88. Powierzchnia w ha (suma z części od E.1 do E.5 kol. a)",null,null,null,null,null,null,null,null,null,null,null,null," 89. Powierzchnia w ha przeliczeniowych (suma z części od E.1 do E.5 kol. c)"]
[null,null,{"$f":"IF(AND(E79=\"\",E81=\"\",E83=\"\",E85=\"\",E87=\"\",E89=\"\",E94=\"\",E96=\"\",E98=\"\",E100=\"\",E105=\"\",E107=\"\",E109=\"\",E111=\"\",E113=\"\",E115=\"\",C122=\"\",C134=\"\"),\"\",SUM(E79,E81,E83,E85,E87,E89,E94,E96,E98,E100,E105,E107,E109,E111,E113,E115,C122,C134))","v":""},null,null,null,null,null,null,null,null,null,null,null,null,{"$f":"IF(AND(T79=\"\",T81=\"\",T83=\"\",T85=\"\",T87=\"\",T89=\"\",T94=\"\",T96=\"\",T98=\"\",T100=\"\",T105=\"\",T107=\"\",T109=\"\",T111=\"\",T113=\"\",T115=\"\",S122=\"\",S134=\"\"),\"\",SUM(T79,T81,T83,T85,T87,T89,T94,T96,T98,T100,T105,T107,T109,T111,T113,T115,S122,S134))","v":""}]
[]
[null," F. DANE O UŻYTKACH ROLNYCH NIESTANOWIĄCYCH GOSPODARSTWA ROLNEGO -"]
[null," PODLEGAJĄCYCH OPODATKOWANIU"]
[null,null," Powierzchnia w ha5)",null,null,null,null,null,null,null,null,null,null,null,null,null,null,null,null,null," 90."]
[]
[]
[null," G. WYSOKOŚĆ ZOBOWIĄZANIA PODATKOWEGO I RAT PODATKU"]
[null,null," Podstawa opodatkowania5)",null,null,null,null,null,null,null,null,null,null,null,null," 91."]
[null,null," W przypadku użytków rolnych stanowiących gospodarstwo rolne podać\n powierzchnię z poz. 89, w przypadku użytków rolnych niestanowiących\n gospodarstwa rolnego należy podać powierzchnię z poz. 90.",null,null,null,null,null,null,null,null,null,null,null,null,{"$f":"IF(AND(P138=\"\",U143=\"\"),\"\",SUM(P138,U143))","v":""}]
[null,null," Stawka podatku",null,null,null,null,null,null,null,null,null,null,null,null," 92."]
[]
[null,null," Kwota podatku, za okres którego dotyczy deklaracja6)",null,null,null,null,null,null,null,null,null,null,null,null," 93."]
[null,null,null,null,null,null,null,null,null,null,null,null,null,null,null,{"$f":"IF(OR(M32=\"\",P147=\"\",P149=\"\"),\"\",P147*P149/12*(13-M32))","v":""}]
[null,null," Kwota przysługującej ulgi w podatku rolnym, za okres którego dotyczy",null,null,null,null,null,null,null,null,null,null,null,null," 94."]
[null,null," deklaracja"]
[null,null," Kwota podatku za miesiące nieobjęte deklaracją7)",null,null,null,null,null,null,null,null,null,null,null,null," 95."]
[null,null," Jeżeli w poz. 5 zaznaczono kwadrat nr 1, należy wpisać 0."]
[null,null," Kwota przysługującej ulgi w podatku rolnym, za miesiące nieobjęte",null,null,null,null,null,null,null,null,null,null,null,null," 96."]
[null,null," deklaracją\n Jeżeli w poz. 5 zaznaczono kwadrat nr 1, należy wpisać 0."]
[null,null," Wysokość zobowiązania podatkowego8)",null,null,null,null,null,null,null,null,null,null,null,null," 97."]
[null,null," Suma kwot z poz. 93 i 95 pomniejszona o sumę kwot z poz. 94 i 96\n (po zaokrągleniu do pełnych złotych).",null,null,null,null,null,null,null,null,null,null,null,null,{"$f":"IF(AND(P151=\"\",P155=\"\",P153=\"\",P157=\"\"),\"\",IF(SUM(P151,P155)-SUM(P153,P157)<0,0,ROUND(SUM(P151,P155)-SUM(P153,P157),0)))","v":""}]
[null,"Suma kwot z poz. od 98 do 101 musi być równa kwocie z poz. 978). W przypadku korekty deklaracji raty, które nie zostały objęte korektą, pozostają bez zmian."]
[null,null," Kwota I raty",null,null,null,null,null,null," 98.",null,null,null,null,null,null," Kwota II raty",null,null,null," 99."]
[]
[null,null," Kwota III raty",null,null,null,null,null,null," 100.",null,null,null,null,null,null," Kwota IV raty",null,null,null," 101."]
[]
[]
[null," H. INFORMACJA O ZAŁĄCZNIKACH Deklarację należy składać wraz z odpowiednimi załącznikami, które stanowią jej"]
[null,null,"integralną część."]
[null,null," 102. Liczba załączników ZDR-1",null,null,null,null,null,null,null,null,null,null,null,null,null," 103. Liczba załączników ZDR-2"]
[]
[]
[null," I. KONTAKT DO OSOBY ODPOWIEDZIALNEJ ZA SPORZĄDZENIE DEKLARACJI"]
[null,"I DODATKOWE INFORMACJE"]
[null,null,"Podanie informacji w części I nie jest obowiązkowe."]
[null,null," 104. Telefon",null,null,null,null,null,null,null,null,null,null,null,null," 105. E-mail"]
[]
[null,null," 106. Inne (np. określenie zdarzenia powodującego obowiązek złożenia deklaracji, wskazanie gmin, na terenie których położone są użytki rolne stanowiące"]
[null,null," gospodarstwo rolne)"]
[]
[]
[null," J. PODPIS PODATNIKA I OSÓB REPREZENTUJĄCYCH PODATNIKA"]
[null," J.1. PODPIS PODATNIKA"]
[null,null," 107. Pierwsze imię",null,null,null,null,null,null,null,null,null,null,null,null," 108. Nazwisko"]
[]
[null,null," 109. Data wypełnienia (dzień - miesiąc - rok)",null,null,null,null,null,null,null,null,null,null,null,null," 110. Podpis podatnika"]
[]
[]
[null,null,null,null,null,null,null,null,null,null,null,null,null,null,null,null,null,null,null,null,"DR-1(1)",null,null,"3/4"]
[" - STRONA 4 -"]
[null," WYPEŁNIĆ DUŻYMI, DRUKOWANYMI LITERAMI, CZARNYM LUB NIEBIESKIM KOLOREM."]
[]
[null," J.2. PODPISY OSÓB REPREZENTUJĄCYCH PODATNIKA"]
[null,null," 111. Pierwsze imię",null,null,null,null,null,null,null,null,null,null,null,null," 112. Nazwisko"]
[]
[null,null," 113. Data wypełnienia (dzień - miesiąc - rok)",null,null,null,null,null,null,null,null,null,null,null,null," 114. Podpis osoby reprezentującej podatnika"]
[]
[null,null," 115. Pierwsze imię",null,null,null,null,null,null,null,null,null,null,null,null," 116. Nazwisko"]
[]
[null,null," 117. Data wypełnienia (dzień - miesiąc - rok)",null,null,null,null,null,null,null,null,null,null,null,null," 118. Podpis osoby reprezentującej podatnika"]
[]
[]
[null," K. ADNOTACJE ORGANU PODATKOWEGO"]
[null,null," 119. Uwagi organu podatkowego"]
[]
[]
[null," Objaśnienia"]
[null,"1)","Numer PESEL wpisują podatnicy będący osobami fizycznymi objętymi rejestrem PESEL, nieprowadzący działalności gospodarczej lub"]
[null,null,"niebędący zarejestrowanymi podatnikami podatku od towarów i usług. Identyfikator podatkowy NIP wpisują pozostali podatnicy."]
[null,"2)","Z wyjątkiem poz. 5 kwadrat 1, ilekroć jest mowa o deklaracji, rozumie się przez to również korektę deklaracji."]
[null,"3)","Zgodnie z przepisami Ordynacji podatkowej."]
[null,"4)","Za gospodarstwo rolne uważa się obszar gruntów sklasyfikowanych w ewidencji gruntów i budynków jako użytki rolne, z wyjątkiem"]
[null,null,"gruntów zajętych na prowadzenie działalności gospodarczej innej niż działalność rolnicza, o łącznej powierzchni przekraczającej 1 ha"]
[null,null,"lub 1ha przeliczeniowy, stanowiących własność lub znajdujących się w posiadaniu osoby fizycznej, osoby prawnej albo jednostki"]
[null,null,"organizacyjnej, w tym spółki, nieposiadającej osobowości prawnej."]
[null,"5)","Należy podać z dokładnością do czterech miejsc po przecinku."]
[null,"6)","Kwotę podatku należy obliczyć, mnożąc podstawę opodatkowania przez stawkę podatku, proporcjonalnie do liczby miesięcy, których"]
[null,null,"dotyczy deklaracja."]
[null,"7)","W przypadku korekty deklaracji należy wpisać sumę miesięcznych kwot podatku za miesiące nieobjęte składaną korektą deklaracji."]
[null,"8)","Kwotę podatku (rat podatku) zaokrągla się do pełnych złotych, w ten sposób, że końcówki kwot wynoszące mniej niż 50 groszy pomija"]
[null,null,"się, a końcówki kwot wynoszące 50 i więcej groszy podwyższa się do pełnych złotych."]
[null,null,"W ostatniej racie następuje wyrównanie do kwoty zobowiązania podatkowego (poz. 97)."]
[null,null,"Obliczony w deklaracji podatek należy wpłacać w ratach proporcjonalnych do czasu trwania obowiązku podatkowego w terminach:"]
[null,null,"do dnia 15 marca, 15 maja, 15 września i 15 listopada."]
[null,null,"W przypadku gdy kwota podatku nie przekracza 100 zł, podatek jest płatny jednorazowo w terminie płatności pierwszej raty."]
[]
[null,"Pouczenia"]
[null,"W przypadku niewpłacenia w obowiązujących terminach zobowiązania podatkowego lub raty podatku lub wpłacenia ich w niepełnej wysokości"]
[null,"niniejsza deklaracja stanowi podstawę do wystawienia tytułu wykonawczego, zgodnie z przepisami ustawy o postępowaniu egzekucyjnym"]
[null,"w administracji."]
[]
[null,"Za podanie nieprawdy lub zatajenie prawdy i przez to narażenie podatku na uszczuplenie grozi odpowiedzialność przewidziana w Kodeksie"]
[null,"karnym skarbowym."]
[]
[]
[]
[]
[]
[]
[]
[]
[]
[]
[]
[]
[]
[]
[]
[]
[null,"DR-1(1)",null,null,"4/4"]

{"sheet":"ZDR-1","index":1,"n_rows":63,"n_cols":21,"rows_kept":63,"cut":false,"hidden":false,"merged":[[61,2,61,6],[61,9,61,10],[61,11,61,12],[61,16,61,18],[62,2,62,6],[62,9,62,10],[62,11,62,12],[62,16,62,18],[64,1,64,18],[63,1,63,18],[59,11,59,12],[59,16,59,18],[60,11,60,12],[60,16,60,18],[59,2,59,6],[59,9,59,10],[60,2,60,6],[60,9,60,10],[57,11,57,12],[57,16,57,18],[58,11,58,12],[58,16,58,18],[57,2,57,6],[57,9,57,10],[58,2,58,6],[58,9,58,10],[55,11,55,12],[55,16,55,18],[56,11,56,12],[56,16,56,18],[55,2,55,6],[55,9,55,10],[56,2,56,6],[56,9,56,10],[53,11,53,12],[53,16,53,18],[54,11,54,12],[54,16,54,18],[53,2,53,6],[53,9,53,10],[54,2,54,6],[54,9,54,10],[52,11,52,12],[52,16,52,18],[49,9,49,10],[49,11,49,12],[49,16,49,18],[50,9,50,10],[50,11,50,12],[50,16,50,18],[49,2,49,6],[50,2,50,6],[51,2,51,6],[51,9,51,10],[51,11,51,12],[51,16,51,18],[52,2,52,6],[52,9,52,10],[45,2,45,6],[46,2,46,6],[47,2,47,6],[48,2,48,6],[43,9,43,10],[43,11,43,12],[43,16,43,18],[44,9,44,10],[44,11,44,12],[44,16,44,18],[43,2,43,6],[44,2,44,6],[47,9,47,10],[47,11,47,12],[47,16,47,18],[48,9,48,10],[48,11,48,12],[48,16,48,18],[45,9,45,10],[45,11,45,12],[45,16,45,18],[46,9,46,10],[46,11,46,12],[46,16,46,18],[42,9,42,10],[42,11,42,12],[42,16,42,18],[40,15,41,15],[40,14,41,14],[40,2,41,6],[40,7,41,7],[40,8,41,8],[40,9,41,10],[42,2,42,6],[37,0,37,18],[38,1,38,18],[39,1,39,18],[40,1,41,1],[40,11,41,12],[40,13,41,13],[31,2,31,18],[32,2,32,18],[35,2,35,18],[36,1,36,16],[40,16,41,18],[33,2,33,18],[34,2,34,18],[26,9,26,10],[26,11,26,12],[26,16,26,18],[27,9,27,10],[27,11,27,12],[27,16,27,18],[27,2,27,6],[24,2,24,6],[25,2,25,6],[26,2,26,6],[28,9,28,10],[28,11,28,12],[28,16,28,18],[29,2,29,18],[30,2,30,18],[28,2,28,6],[20,16,20,18],[21,9,21,10],[21,11,21,12],[21,16,21,18],[24,9,24,10],[24,11,24,12],[24,16,24,18],[25,9,25,10],[25,11,25,12],[25,16,25,18],[20,2,20,6],[21,2,21,6],[22,2,22,6],[23,2,23,6],[16,1,16,18],[17,1,17,18],[18,1,19,1],[18,11,19,12],[18,13,19,13],[18,16,19,18],[18,15,19,15],[18,2,19,6],[18,7,19,7],[18,8,19,8],[18,9,19,10],[18,14,19,14],[22,9,22,10],[22,11,22,12],[22,16,22,18],[23,9,23,10],[23,11,23,12],[23,16,23,18],[20,9,20,10],[20,11,20,12],[12,1,12,18],[14,2,14,9],[14,10,14,18],[15,2,15,9],[15,10,15,18],[5,1,5,18],[6,1,6,18],[7,1,7,18],[8,1,9,16],[8,17,8,18],[9,17,9,18],[13,1,13,18],[0,1,0,18],[1,1,1,18],[2,1,2,18],[3,12,4,18],[4,1,4,4],[4,5,4,11],[3,1,3,11],[10,1,10,18],[11,1,11,18]]}
[]
[null," WYPEŁNIĆ DUŻYMI, DRUKOWANYMI LITERAMI, CZARNYM LUB NIEBIESKIM KOLOREM."]
[]
[null," 1. Identyfikator podatkowy NIP / numer PESEL (niepotrzebne skreślić)1)",null,null,null,null,null,null,null,null,null,null," 2. Nr dokumentu"]
[null,null,null,null,null,{"$f":"IF('DR-1'!D5=\"\",\"\",'DR-1'!D5)","v":""}]
[null,"    ZDR-1"]
[null,"ZAŁĄCZNIK DO DEKLARACJI NA PODATEK ROLNY"]
[null,"- DANE O PRZEDMIOTACH OPODATKOWANIA PODLEGAJĄCYCH OPODATKOWANIU"]
[null,null,null,null,null,null,null,null,null,null,null,null,null,null,null,null,null," 3. Nr załącznika"]
[null,null,null,null,null,null,null,null,null,null,null,null,null,null,null,null,null,"1"]
[]
[]
[null," A. DANE PODATNIKA WSKAZANEGO W CZĘŚCI C.1 DEKLARACJI DR-1"]
[null,"* - dotyczy podatnika niebędącego osobą fizyczną               **- dotyczy podatnika będącego osobą fizyczną"]
[null,null," 4. Nazwa pełna * / Nazwisko **",null,null,null,null,null,null,null," 5. Nazwa skrócona * / Pierwsze imię **"]
[null,null,{"$f":"IF('DR-1'!C44=\"\",\"\",'DR-1'!C44)","v":""},null,null,null,null,null,null,null,{"$f":"IF('DR-1'!P44=\"\",\"\",'DR-1'!P44)","v":""}]
[]
[null," B. DANE O POSZCZEGÓLNYCH PRZEDMIOTACH OPODATKOWANIA PODLEGAJĄCYCH OPODATKOWANIU"]
[null," Lp."," Położenie (adres, w tym dzielnica)\n",null,null,null,null,"Nr księgi wieczystej\n(zbioru dokumentów)","Nr obrębu\n(arkusza\nmapy)2)","Nr działki",null,"Powierzchnia\nw ha3)",null,"Rodzaj\nużytku","Klasa\nużytku","Forma\nwładania4)","Podstawa prawna ulgi5)"]
[]
[null,null,"a",null,null,null,null,"b","c","d",null,"e",null,"f","g","h","i"]
[null,1]
[null,2]
[null,3]
[null,4]
[null,5]
[null,6]
[null,7]
[null,8]
[null,"1)","Numer PESEL wpisują podatnicy będący osobami fizycznymi objętymi rejestrem PESEL, nieprowadzący działalności gospodarczej lub niebędący zarejestrowanymi podatnikami podatku od towarów i usług.",null,null,null,null,null,null,null,null,null,null,null,null,null,null,null,null,null,"własność"]
[null,null,"Identyfikator podatkowy NIP wpisują pozostali podatnicy.",null,null,null,null,null,null,null,null,null,null,null,null,null,null,null,null,null,"użytkowanie wieczyste"]
[null,"2)","Numer obrębu należy podać wraz z numerem arkusza mapy ewidencyjnej w przypadku, gdy działki numerowane są w ramach arkusza mapy.",null,null,null,null,null,null,null,null,null,null,null,null,null,null,null,null,null,"posiadanie samoistne"]
[null,"3)","Należy podać z dokładnością do czterech miejsc po przecinku.",null,null,null,null,null,null,null,null,null,null,null,null,null,null,null,null,null,"posiadanie zależne"]
[null,"4)","Należy podać jedną z form władania: własność, użytkowanie wieczyste, posiadanie samoistne, posiadanie zależne lub posiadanie bez tytułu prawnego.",null,null,null,null,null,null,null,null,null,null,null,null,null,null,null,null,null,"posiadanie bez tytułu prawnego"]
[null,"5)","Należy podać jednostkę redakcyjną z ustawy lub uchwały rady gminy."]
[]
[]
[" - STRONA 2 -"]
[null," WYPEŁNIĆ DUŻYMI, DRUKOWANYMI LITERAMI, CZARNYM LUB NIEBIESKIM KOLOREM."]
[]
[null," Lp."," Położenie (adres, w tym dzielnica)\n",null,null,null,null,"Nr księgi wieczystej\n(zbioru dokumentów)","Nr obrębu\n(arkusza\nmapy)2)","Nr działki",null,"Powierzchnia\nw ha3)",null,"Rodzaj\nużytku","Klasa\nużytku","Forma\nwładania4)","Podstawa prawna ulgi5)"]
[]
[null,null,"a",null,null,null,null,"b","c","d",null,"e",null,"f","g","h","i"]
[null,9]
[null,10]
[null,11]
[null,12]
[null,13]
[null,14]
[null,15]
[null,16]
[null,17]
[null,18]
[null,19]
[null,20]
[null,21]
[null,22]
[null,23]
[null,24]
[null,25]
[null,26]
[null,27]
[null,28]

{"sheet":"ZDR-2","index":2,"n_rows":65,"n_cols":18,"rows_kept":65,"cut":false,"hidden":false,"merged":[[10,1,10,17],[11,1,11,17],[13,1,13,17],[0,1,0,17],[1,1,1,17],[2,1,2,17],[3,1,3,11],[3,12,4,17],[4,1,4,4],[4,5,4,11],[5,1,5,17],[6,1,6,17],[7,1,7,17],[8,1,9,15],[8,16,8,17],[9,16,9,17],[12,1,12,17],[14,2,14,9],[14,10,14,17],[15,2,15,9],[15,10,15,17],[18,2,19,6],[18,7,19,7],[18,8,19,8],[18,9,19,10],[18,14,19,14],[22,9,22,10],[22,11,22,12],[20,9,20,10],[20,11,20,12],[20,2,20,6],[21,2,21,6],[22,2,22,6],[23,2,23,6],[16,1,16,17],[17,1,17,17],[18,1,19,1],[18,11,19,12],[18,13,19,13],[18,15,19,17],[21,9,21,10],[21,11,21,12],[21,15,21,17],[20,15,20,17],[24,9,24,10],[24,11,24,12],[24,15,24,17],[22,15,22,17],[23,9,23,10],[23,11,23,12],[23,15,23,17],[30,2,30,17],[31,2,31,17],[28,2,28,6],[26,9,26,10],[26,11,26,12],[26,15,26,17],[27,9,27,10],[27,11,27,12],[27,15,27,17],[27,2,27,6],[24,2,24,6],[25,2,25,6],[26,2,26,6],[28,9,28,10],[28,11,28,12],[28,15,28,17],[25,9,25,10],[40,2,41,6],[40,7,41,7],[40,8,41,8],[40,9,41,10],[40,14,41,14],[42,2,42,6],[25,11,25,12],[25,15,25,17],[32,2,32,17],[33,2,33,17],[35,2,35,17],[34,2,34,17],[36,1,36,15],[40,15,41,17],[37,0,37,17],[38,1,38,17],[39,1,39,17],[40,1,41,1],[40,11,41,12],[40,13,41,13],[48,15,48,17],[45,9,45,10],[45,11,45,12],[45,15,45,17],[46,9,46,10],[46,11,46,12],[46,15,46,17],[42,9,42,10],[42,11,42,12],[42,15,42,17],[43,15,43,17],[44,9,44,10],[44,11,44,12],[44,15,44,17],[43,2,43,6],[44,2,44,6],[45,2,45,6],[46,2,46,6],[47,2,47,6],[47,15,47,17],[48,2,48,6],[43,9,43,10],[43,11,43,12],[47,9,47,10],[47,11,47,12],[49,2,49,6],[50,2,50,6],[51,2,51,6],[51,9,51,10],[51,11,51,12],[48,9,48,10],[48,11,48,12],[51,15,51,17],[52,11,52,12],[52,15,52,17],[52,2,52,6],[52,9,52,10],[49,9,49,10],[49,11,49,12],[49,15,49,17],[50,9,50,10],[50,11,50,12],[50,15,50,17],[53,11,53,12],[53,15,53,17],[54,11,54,12],[54,15,54,17],[53,2,53,6],[53,9,53,10],[54,2,54,6],[54,9,54,10],[55,11,55,12],[55,15,55,17],[56,11,56,12],[56,15,56,17],[55,2,55,6],[55,9,55,10],[56,2,56,6],[56,9,56,10],[64,1,64,2],[64,4,64,17],[57,11,57,12],[57,15,57,17],[58,11,58,12],[58,15,58,17],[57,2,57,6],[57,9,57,10],[58,2,58,6],[58,9,58,10],[61,2,61,6],[61,9,61,10],[61,11,61,12],[61,15,61,17],[62,2,62,6],[62,9,62,10],[62,11,62,12],[62,15,62,17],[65,1,65,17],[63,1,63,17],[59,11,59,12],[59,15,59,17],[60,11,60,12],[60,15,60,17],[59,2,59,6],[59,9,59,10],[60,2,60,6],[60,9,60,10]]}
[]
[null," WYPEŁNIĆ DUŻYMI, DRUKOWANYMI LITERAMI, CZARNYM LUB NIEBIESKIM KOLOREM."]
[]
[null," 1. Identyfikator podatkowy NIP / numer PESEL (niepotrzebne skreślić)1)",null,null,null,null,null,null,null,null,null,null," 2. Nr dokumentu"]
[null,null,null,null,null,{"$f":"IF('DR-1'!D5=\"\",\"\",'DR-1'!D5)","v":""}]
[null,"    ZDR-2"]
[null,"ZAŁĄCZNIK DO DEKLARACJI NA PODATEK ROLNY"]
[null,"- DANE O PRZEDMIOTACH OPODATKOWANIA ZWOLNIONYCH Z OPODATKOWANIA"]
[null,null,null,null,null,null,null,null,null,null,null,null,null,null,null,null," 3. Nr załącznika"]
[null,null,null,null,null,null,null,null,null,null,null,null,null,null,null,null,"1"]
[]
[]
[null," A. DANE PODATNIKA WSKAZANEGO W CZĘŚCI C.1 DEKLARACJI DR-1"]
[null,"* - dotyczy podatnika niebędącego osobą fizyczną                    ** - dotyczy podatnika będącego osobą fizyczną"]
[null,null," 4. Nazwa pełna * / Nazwisko **",null,null,null,null,null,null,null," 5. Nazwa skrócona * / Pierwsze imię **"]
[null,null,{"$f":"IF('DR-1'!C44=\"\",\"\",'DR-1'!C44)","v":""},null,null,null,null,null,null,null,{"$f":"IF('DR-1'!P44=\"\",\"\",'DR-1'!P44)","v":""}]
[]
[null," B. DANE O POSZCZEGÓLNYCH PRZEDMIOTACH OPODATKOWANIA ZWOLNIONYCH Z OPODATKOWANIA"]
[null," Lp."," Położenie (adres, w tym dzielnica)\n",null,null,null,null,"Nr księgi wieczystej\n(zbioru dokumentów)","Nr obrębu\n(arkusza\nmapy)2)","Nr działki",null,"Powierzchnia\nw ha3)",null,"Rodzaj użytku","Klasa użytku\n","Podstawa prawna zwolnienia4)\n"]
[]
[null,null,"a",null,null,null,null,"b","c","d",null,"e",null,"f","g","h"]
[null,1]
[null,2]
[null,3]
[null,4]
[null,5]
[null,6]
[null,7]
[null,8]
[]
[null,"1)","Numer PESEL wpisują podatnicy będący osobami fizycznymi objętymi rejestrem PESEL, nieprowadzący działalności gospodarczej lub niebędący zarejestrowanymi podatnikami podatku od towarów i usług."]
[null,null,"Identyfikator podatkowy NIP wpisują pozostali podatnicy."]
[null,"2)","Numer obrębu należy podać wraz z numerem arkusza mapy ewidencyjnej w przypadku, gdy działki numerowane są w ramach arkusza mapy."]
[null,"3)","Należy podać z dokładnością do czterech miejsc po przecinku."]
[null,"4)","Należy podać jednostkę redakcyjną z ustawy lub uchwały rady gminy."]
[]
[null,null,null,null,null,null,null,null,null,null,null,null,null,null,null,null," ZDR-2(1)","1/2"]
[" - STRONA 2 -"]
[null," WYPEŁNIĆ DUŻYMI, DRUKOWANYMI LITERAMI, CZARNYM LUB NIEBIESKIM KOLOREM."]
[]
[null," Lp."," Położenie (adres, w tym dzielnica)\n",null,null,null,null,"Nr księgi wieczystej\n(zbioru dokumentów)","Nr obrębu\n(arkusza\nmapy)2)","Nr działki",null,"Powierzchnia\nw ha3)",null,"Rodzaj użytku","Klasa użytku\n","Podstawa prawna zwolnienia4)\n"]
[]
[null,null,"a",null,null,null,null,"b","c","d",null,"e",null,"f","g","h"]
[null,9]
[null,10]
[null,11]
[null,12]
[null,13]
[null,14]
[null,15]
[null,16]
[null,17]
[null,18]
[null,19]
[null,20]
[null,21]
[null,22]
[null,23]
[null,24]
[null,25]
[null,26]
[null,27]
[null,28]
[]
[null," ZDR-2(1)",null,"2/2"]